[Event "51st Rilton Cup 2023-24"]
[Site "Stockholm"]
[Date "2023.12.28"]
[Round "2.19"]
[White "Krishna C R G"]
[Black "Luukkonen, Tommi"]
[Result "1-0"]
[ECO "A41"]
[WhiteElo "2396"]
[BlackElo "2323"]
[Annotator "ChessBase"]
[PlyCount "111"]
[EventDate "2023.12.27"]
[EventType "swiss"]
[EventCountry "SWE"]
[SourceTitle "playchess.com"]
[Source "ChessBase"]
[SourceQuality "1"]
[TimeControl "40/5400+30:1800+30"]

1. d4 {[%emt 0:13:40]} g6 {[%emt 0:00:07]} 2. c4 {[%emt 0:00:42]} Bg7 {[%emt 0:00:06]} 3. Nf3 {[%emt 0:00:57]} d6 {[%emt 0:00:45]} 4. g3 {[%emt 0:00:09]} c5 {[%emt 0:00:53]} 5. Bg2 {[%emt 0:01:15]} Nc6 {[%emt 0:00:52]} 6. d5 {[%emt 0:05:38]} Nd4 {[%emt 0:00:41]} 7. Nxd4 {[%emt 0:01:30]} cxd4 {[%emt 0:01:41]} 8. O-O {[%emt 0:02:33]} Qb6 {[%emt 0:06:23]} 9. Nd2 {[%emt 0:05:36]} Nh6 {[%emt 0:02:10]} 10. Nf3 {[%emt 0:01:14]} Nf5 {[%emt 0:10:54]} 11. Rb1 {[%emt 0:14:01]} O-O {[%emt 0:00:00]} 12. b3 {[%emt 0:00:51]} e6 13. dxe6 {[%emt 0:14:09]} fxe6 14. Bb2 {[%emt 0:09:10]} e5 {[%emt 0:00:00]} 15. Ng5 {[%emt 0:08:07]} h6 16. Ne4 {[%emt 0:02:09]} Be6 {[%emt 0:01:39]} 17. Qd2 Bc8 {[%emt 0:00:00]} 18. Qd1 {[%emt 0:01:00]} Be6 {[%emt 0:01:00]} 19. Qd2 {[%emt 0:00:30]} a5 {[%emt 0:00:30]} 20. Ba3 {[%emt 0:05:58]} Qd8 21. Qd3 {[%emt 0:06:51]} a4 {[%emt 0:03:49]} 22. Bb4 {[%emt 0:16:54]} Qd7 {[%emt 0:07:25]} 23. h3 {[%emt 0:03:10]} Ra6 {[%emt 0:10:44]} 24. Rfc1 {[%emt 0:00:00]} Kh7 {[%emt 0:06:53]} 25. Kh2 {[%emt 0:00:00]} Rb8 {[%emt 0:02:20]} 26. h4 {[%emt 0:00:00]} Kh8 27. Qd1 {[%emt 0:00:00]} Qf7 28. Qe1 {[%emt 0:08:44]} g5 {[%emt 0:00:22]} 29. hxg5 {[%emt 0:00:00]} Qh5+ {[%emt 0:13:09]} 30. Kg1 {[%emt 0:00:00]} d3 {[%emt 0:04:20]} 31. Bf3 {[%emt 0:00:00]} Qg6 {[%emt 0:00:03]} 32. Bc3 {[%emt 0:00:00]} Rf8 {[%emt 0:07:57]} 33. Bg2 {[%emt 0:00:00]} axb3 {[%emt 0:17:31]} 34. axb3 {[%emt 0:00:00]} Nd4 {[%emt 0:00:52]} 35. Bxd4 {[%emt 0:00:00]} exd4 {[%emt 0:00:02]} 36. exd3 {[%emt 0:00:00]} Ra2 {[%emt 0:00:38]} 37. Ra1 {[%emt 0:00:00]} Rb2 {[%emt 0:02:46]} 38. Rcb1 {[%emt 0:00:00]} Rc2 {[%emt 0:00:56]} 39. Rc1 {[%emt 0:00:00]} Rb2 {[%emt 0:00:07]} 40. Rcb1 {[%emt 0:00:00]} Rc2 {[%emt 0:00:07]} 41. Qd1 {[%emt 0:13:27]} Rc3 {[%emt 0:30:05]} 42. Ra5 {[%emt 0:01:55]} h5 {[%emt 0:00:58]} 43. Bf3 {[%emt 0:00:00]} Bf5 {[%emt 0:00:00]} 44. Bxh5 {[%emt 0:00:00]} Qh7 {[%emt 0:00:00]} 45. Rxf5 {[%emt 0:00:00]} Qxf5 {[%emt 0:00:00]} 46. Kg2 {[%emt 0:00:00]} b5 {[%emt 0:00:00]} 47. Bg4 {[%emt 0:00:00]} Qe5 {[%emt 0:00:00]} 48. Nxc3 {[%emt 0:00:00]} dxc3 {[%emt 0:00:00]} 49. Qh1+ {[%emt 0:00:00]} Kg8 {[%emt 0:00:00]} 50. Re1 {[%emt 0:00:00]} Qxg5 {[%emt 0:00:00]} 51. Be6+ {[%emt 0:00:00]} Rf7 {[%emt 0:00:00]} 52. Bxf7+ {[%emt 0:00:00]} Kxf7 {[%emt 0:00:00]} 53. Qh3 {[%emt 0:00:00]} Bf6 {[%emt 0:00:00]} 54. Qd7+ {[%emt 0:00:00]} Be7 {[%emt 0:00:00]} 55. Qe6+ {[%emt 0:00:00]} Kf8 {[%emt 0:00:00]} 56. f4 {[%emt 0:00:00]} 1-0

[Event "51st Rilton Cup 2023-24"]
[Site "Stockholm"]
[Date "2023.12.28"]
[Round "2.20"]
[White "Ljung, Harald"]
[Black "Akesson, Ralf"]
[Result "0-1"]
[ECO "A49"]
[WhiteElo "2120"]
[BlackElo "2387"]
[Annotator "ChessBase"]
[PlyCount "40"]
[EventDate "2023.12.27"]
[EventType "swiss"]
[EventCountry "SWE"]
[SourceTitle "playchess.com"]
[Source "ChessBase"]
[SourceQuality "1"]
[TimeControl "40/5400+30:1800+30"]

1. d4 {[%emt 0:00:03]} Nf6 {[%emt 0:03:49]} 2. Nf3 {[%emt 0:00:28]} g6 {[%emt 0:00:48]} 3. g3 {[%emt 0:00:46]} c5 {[%emt 0:01:06]} 4. c3 {[%emt 0:01:15]} b6 {[%emt 0:02:52]} 5. Bg2 {[%emt 0:00:22]} Bb7 {[%emt 0:00:08]} 6. O-O {[%emt 0:00:22]} Bg7 {[%emt 0:00:14]} 7. a4 {[%emt 0:08:09]} O-O {[%emt 0:02:24]} 8. Qb3 {[%emt 0:07:08]} Qc7 {[%emt 0:04:06]} 9. Na3 {[%emt 0:02:30]} Nc6 {[%emt 0:07:29]} 10. Bf4 {[%emt 0:07:22]} d6 {[%emt 0:00:47]} 11. Nb5 {[%emt 0:11:25]} Qd7 {[%emt 0:05:56]} 12. dxc5 {[%emt 0:04:17]} bxc5 {[%emt 0:00:15]} 13. Rad1 {[%emt 0:02:06]} Na5 {[%emt 0:11:11]} 14. Qa2 {[%emt 0:02:06]} a6 {[%emt 0:03:02]} 15. Nxd6 {[%emt 0:33:22]} exd6 {[%emt 0:00:23]} 16. Bxd6 {[%emt 0:00:35]} Rfd8 {[%emt 0:03:26]} 17. Ne5 {[%emt 0:12:56]} Qe8 {[%emt 0:00:41]} 18. Bh3 {[%emt 0:00:38]} Rxd6 {[%emt 0:06:46]} 19. Rxd6 {[%emt 0:01:02]} Qxe5 {[%emt 0:00:26]} 20. Rfd1 {[%emt 0:01:46]} Qe4 {[%emt 0:01:28]} 0-1

[Event "51st Rilton Cup 2023-24"]
[Site "Stockholm"]
[Date "2023.12.28"]
[Round "2.21"]
[White "Logdahl, Harald"]
[Black "Kavutskiy, Konstantin"]
[Result "1/2-1/2"]
[ECO "B23"]
[WhiteElo "2187"]
[BlackElo "2384"]
[Annotator "ChessBase"]
[PlyCount "70"]
[EventDate "2023.12.27"]
[EventType "swiss"]
[EventCountry "SWE"]
[SourceTitle "playchess.com"]
[Source "ChessBase"]
[SourceQuality "1"]
[TimeControl "40/5400+30:1800+30"]

1. e4 {[%emt 0:00:05]} c5 {[%emt 0:04:42]} 2. Nc3 {[%emt 0:00:11]} e6 {[%emt 0:00:37]} 3. f4 {[%emt 0:00:10]} a6 {[%emt 0:00:23]} 4. g3 {[%emt 0:00:26]} d5 {[%emt 0:00:44]} 5. d3 {[%emt 0:00:16]} Nc6 {[%emt 0:00:17]} 6. Bg2 {[%emt 0:00:15]} Nge7 {[%emt 0:00:22]} 7. Nf3 {[%emt 0:05:07]} g6 {[%emt 0:00:59]} 8. O-O {[%emt 0:00:23]} Bg7 {[%emt 0:00:14]} 9. Bd2 {[%emt 0:05:55]} b6 {[%emt 0:03:16]} 10. Rb1 {[%emt 0:05:30]} a5 {[%emt 0:03:41]} 11. a4 {[%emt 0:06:54]} Ba6 {[%emt 0:10:20]} 12. Nb5 {[%emt 0:00:42]} Bxb5 {[%emt 0:13:57]} 13. axb5 {[%emt 0:00:07]} Nd4 {[%emt 0:00:58]} 14. Nxd4 {[%emt 0:03:05]} cxd4 {[%emt 0:00:21]} 15. f5 {[%emt 0:10:08]} gxf5 {[%emt 0:07:30]} 16. exf5 {[%emt 0:00:22]} Nxf5 {[%emt 0:02:27]} 17. Rxf5 {[%emt 0:03:06]} exf5 {[%emt 0:00:06]} 18. Qh5 {[%emt 0:07:20]} O-O {[%emt 0:04:29]} 19. Bh3 {[%emt 0:00:39]} Qd6 {[%emt 0:13:10]} 20. Bxf5 {[%emt 0:00:33]} h6 {[%emt 0:00:16]} 21. Bf4 {[%emt 0:08:25]} Qf6 {[%emt 0:01:12]} 22. Rf1 {[%emt 0:00:21]} Rfe8 {[%emt 0:01:35]} 23. Bd7 {[%emt 0:05:32]} Re7 {[%emt 0:03:24]} 24. Bc6 {[%emt 0:01:27]} Rc8 {[%emt 0:02:01]} 25. Bc7 {[%emt 0:04:43]} Qg5 {[%emt 0:09:48]} 26. Qxg5 {[%emt 0:00:11]} hxg5 {[%emt 0:00:04]} 27. Bxb6 {[%emt 0:00:14]} a4 {[%emt 0:00:24]} 28. Rf2 {[%emt 0:07:14]} Re1+ {[%emt 0:01:04]} 29. Rf1 {[%emt 0:07:36]} Re6 {[%emt 0:00:32]} 30. Bd7 {[%emt 0:05:41]} Rxc2 {[%emt 0:00:53]} 31. Bxe6 {[%emt 0:00:06]} fxe6 {[%emt 0:00:03]} 32. Rf2 {[%emt 0:00:12]} Rc1+ {[%emt 0:00:15]} 33. Rf1 {[%emt 0:00:26]} Rc2 {[%emt 0:00:08]} 34. Rf2 {[%emt 0:00:07]} Rc1+ {[%emt 0:04:12]} 35. Rf1 {[%emt 0:00:43]} Rc2 {[%emt 0:00:45]} 1/2-1/2

[Event "51st Rilton Cup 2023-24"]
[Site "Stockholm"]
[Date "2023.12.29"]
[Round "3.1"]
[White "Kulaots, Kaido"]
[Black "Socko, Monika"]
[Result "1-0"]
[ECO "B12"]
[WhiteElo "2524"]
[BlackElo "2396"]
[Annotator "ChessBase"]
[PlyCount "81"]
[EventDate "2023.12.27"]
[EventType "swiss"]
[EventCountry "SWE"]
[SourceTitle "playchess.com"]
[Source "ChessBase"]
[SourceQuality "1"]
[TimeControl "40/5400+30:1800+30"]

1. e4 {[%emt 0:00:02]} c6 {[%emt 0:00:04]} 2. d4 {[%emt 0:00:18]} d5 {[%emt 0:00:05]} 3. e5 {[%emt 0:00:04]} Bf5 {[%emt 0:00:26]} 4. c4 {[%emt 0:01:10]} e6 {[%emt 0:01:55]} 5. Nc3 {[%emt 0:00:18]} Ne7 {[%emt 0:01:45]} 6. h3 {[%emt 0:00:46]} dxc4 {[%emt 0:07:12]} 7. Bxc4 {[%emt 0:00:27]} Nd7 {[%emt 0:00:10]} 8. Nge2 {[%emt 0:06:21]} Nb6 {[%emt 0:01:40]} 9. Bb3 {[%emt 0:00:29]} Ned5 {[%emt 0:00:56]} 10. O-O {[%emt 0:03:23]} Be7 {[%emt 0:02:17]} 11. Ng3 {[%emt 0:08:17]} Qd7 {[%emt 0:05:00]} 12. Qf3 {[%emt 0:06:10]} Bg6 {[%emt 0:05:17]} 13. Nce4 {[%emt 0:03:14]} O-O-O {[%emt 0:14:43]} 14. Bd2 {[%emt 0:03:19]} Nc7 {[%emt 0:04:37]} 15. Ne2 {[%emt 0:16:44]} Rhf8 {[%emt 0:19:05]} 16. Rfd1 {[%emt 0:02:58]} f6 {[%emt 0:02:38]} 17. exf6 {[%emt 0:14:49]} gxf6 {[%emt 0:00:03]} 18. Bh6 {[%emt 0:00:26]} Bxe4 {[%emt 0:03:50]} 19. Qxe4 {[%emt 0:00:06]} Rg8 {[%emt 0:00:02]} 20. Nf4 {[%emt 0:03:49]} Nbd5 {[%emt 0:03:53]} 21. Re1 {[%emt 0:03:23]} Bb4 {[%emt 0:04:28]} 22. Re2 {[%emt 0:00:27]} Rde8 {[%emt 0:01:01]} 23. a3 {[%emt 0:02:29]} Bd6 {[%emt 0:00:46]} 24. Rae1 {[%emt 0:05:26]} Kb8 {[%emt 0:06:28]} 25. Qf3 {[%emt 0:03:45]} Qf7 {[%emt 0:01:09]} 26. Bc4 {[%emt 0:02:59]} a6 {[%emt 0:01:57]} 27. Kh1 {[%emt 0:02:38]} Ka7 {[%emt 0:00:00]} 28. g3 {[%emt 0:05:01]} Qd7 {[%emt 0:09:39]} 29. h4 {[%emt 0:01:24]} Bf8 {[%emt 0:00:59]} 30. Bxd5 {[%emt 0:02:10]} cxd5 {[%emt 0:00:19]} 31. Bxf8 {[%emt 0:00:12]} Rgxf8 {[%emt 0:00:02]} 32. Nd3 {[%emt 0:00:21]} Qd6 {[%emt 0:02:20]} 33. a4 {[%emt 0:00:34]} Kb8 {[%emt 0:01:16]} 34. Rc1 {[%emt 0:01:23]} e5 {[%emt 0:00:17]} 35. Qh5 {[%emt 0:00:47]} e4 {[%emt 0:00:55]} 36. Nf4 {[%emt 0:00:04]} Re7 {[%emt 0:00:19]} 37. Rc5 {[%emt 0:01:16]} f5 {[%emt 0:00:11]} 38. Rec2 {[%emt 0:00:36]} Rg7 {[%emt 0:00:56]} 39. b4 {[%emt 0:01:15]} Qf6 {[%emt 0:00:40]} 40. Rxc7 {[%emt 0:00:23]} e3 {[%emt 0:00:17]} 41. Rxg7 {[%emt 0:01:28]} 1-0

[Event "51st Rilton Cup 2023-24"]
[Site "Stockholm"]
[Date "2023.12.29"]
[Round "3.2"]
[White "Krishna C R G"]
[Black "Prraneeth Vuppala"]
[Result "0-1"]
[ECO "E14"]
[WhiteElo "2396"]
[BlackElo "2515"]
[Annotator "ChessBase"]
[PlyCount "112"]
[EventDate "2023.12.27"]
[EventType "swiss"]
[EventCountry "SWE"]
[SourceTitle "playchess.com"]
[Source "ChessBase"]
[SourceQuality "1"]
[TimeControl "40/5400+30:1800+30"]

1. d4 {[%emt 0:09:04]} Nf6 {[%emt 0:00:14]} 2. Nf3 {[%emt 0:00:09]} d5 {[%emt 0:00:13]} 3. e3 {[%emt 0:00:12]} e6 {[%emt 0:01:12]} 4. Bd3 {[%emt 0:00:23]} b6 {[%emt 0:00:48]} 5. O-O {[%emt 0:00:20]} Bb7 {[%emt 0:00:05]} 6. b3 {[%emt 0:00:31]} Bd6 {[%emt 0:00:15]} 7. Bb2 {[%emt 0:00:09]} O-O {[%emt 0:00:10]} 8. c4 {[%emt 0:00:04]} Nbd7 {[%emt 0:01:43]} 9. Nc3 {[%emt 0:00:04]} a6 {[%emt 0:00:53]} 10. Rc1 {[%emt 0:00:08]} Qe7 {[%emt 0:01:50]} 11. Na4 {[%emt 0:00:39]} dxc4 {[%emt 0:14:07]} 12. bxc4 {[%emt 0:00:03]} c5 {[%emt 0:05:47]} 13. Ne5 {[%emt 0:04:24]} Rfd8 {[%emt 0:06:55]} 14. f4 {[%emt 0:00:49]} Rab8 {[%emt 0:08:14]} 15. Qe2 {[%emt 0:07:58]} cxd4 {[%emt 0:06:15]} 16. exd4 {[%emt 0:01:56]} Ba3 {[%emt 0:03:58]} 17. Nxd7 {[%emt 0:06:48]} Rxd7 {[%emt 0:09:36]} 18. Nxb6 {[%emt 0:02:41]} Bxb2 {[%emt 0:01:00]} 19. Qxb2 {[%emt 0:00:04]} Bc6 {[%emt 0:04:12]} 20. c5 {[%emt 0:41:54]} Qd8 {[%emt 0:00:16]} 21. Be2 {[%emt 0:06:09]} Rxd4 {[%emt 0:19:32]} 22. Rfd1 {[%emt 0:00:18]} Rxd1+ {[%emt 0:00:15]} 23. Rxd1 {[%emt 0:00:02]} Qf8 {[%emt 0:00:06]} 24. Rd6 {[%emt 0:06:29]} Bd5 {[%emt 0:00:43]} 25. Qc2 {[%emt 0:01:30]} Ne4 {[%emt 0:11:06]} 26. Nd7 {[%emt 0:04:15]} Qc8 {[%emt 0:00:36]} 27. Bxa6 {[%emt 0:02:36]} Qc7 {[%emt 0:00:29]} 28. Nxb8 {[%emt 0:02:55]} Nxd6 {[%emt 0:00:24]} 29. Bd3 {[%emt 0:00:04]} Nf5 {[%emt 0:02:37]} 30. Bxf5 {[%emt 0:02:18]} exf5 {[%emt 0:00:01]} 31. Na6 {[%emt 0:00:23]} Qxf4 {[%emt 0:01:13]} 32. h3 {[%emt 0:00:18]} Qe3+ {[%emt 0:00:39]} 33. Kh2 {[%emt 0:00:03]} Qe5+ {[%emt 0:00:40]} 34. Kg1 {[%emt 0:00:48]} Qe6 {[%emt 0:00:48]} 35. Qb2 {[%emt 0:00:53]} h6 {[%emt 0:00:17]} 36. Nb4 {[%emt 0:00:33]} Be4 {[%emt 0:00:37]} 37. Qd4 {[%emt 0:00:33]} Qg6 {[%emt 0:00:29]} 38. Qd2 {[%emt 0:00:03]} Qf6 {[%emt 0:00:24]} 39. c6 {[%emt 0:00:59]} Qa1+ {[%emt 0:00:37]} 40. Kf2 {[%emt 0:00:25]} Qh1 {[%emt 0:00:30]} 41. Kg3 {[%emt 0:07:08]} f4+ {[%emt 0:08:29]} 42. Kxf4 {[%emt 0:00:04]} Bxg2 {[%emt 0:00:13]} 43. Qd8+ {[%emt 0:05:38]} Kh7 {[%emt 0:00:07]} 44. Qd3+ {[%emt 0:00:06]} g6 {[%emt 0:00:05]} 45. Qd7 {[%emt 0:01:39]} Qf1+ {[%emt 0:03:57]} 46. Ke5 {[%emt 0:00:17]} Bxh3 {[%emt 0:03:34]} 47. Qd4 {[%emt 0:01:50]} Be6 {[%emt 0:11:17]} 48. a4 {[%emt 0:07:10]} Qe1+ {[%emt 0:03:55]} 49. Kd6 {[%emt 0:00:17]} Qg3+ {[%emt 0:00:17]} 50. Kc5 {[%emt 0:04:16]} Qc7 {[%emt 0:02:28]} 51. Kb5 {[%emt 0:03:06]} Qb8+ {[%emt 0:00:24]} 52. Qb6 {[%emt 0:00:14]} Qf4 {[%emt 0:00:16]} 53. Ka6 {[%emt 0:01:25]} h5 {[%emt 0:00:24]} 54. c7 {[%emt 0:01:15]} Qc4+ {[%emt 0:00:23]} 55. Kb7 {[%emt 0:00:04]} h4 {[%emt 0:00:09]} 56. Qxe6 {[%emt 0:01:52]} fxe6 {[%emt 0:00:33]} 0-1

[Event "51st Rilton Cup 2023-24"]
[Site "Stockholm"]
[Date "2023.12.29"]
[Round "3.3"]
[White "Akesson, Ralf"]
[Black "Raja Rithvik R"]
[Result "0-1"]
[ECO "D45"]
[WhiteElo "2387"]
[BlackElo "2500"]
[Annotator "ChessBase"]
[PlyCount "96"]
[EventDate "2023.12.27"]
[EventType "swiss"]
[EventCountry "SWE"]
[SourceTitle "playchess.com"]
[Source "ChessBase"]
[SourceQuality "1"]
[TimeControl "40/5400+30:1800+30"]

1. d4 {[%emt 0:04:09]} d5 {[%emt 0:00:07]} 2. c4 {[%emt 0:00:08]} e6 {[%emt 0:00:31]} 3. Nc3 {[%emt 0:00:18]} c6 {[%emt 0:00:07]} 4. e3 {[%emt 0:00:40]} Nf6 {[%emt 0:00:10]} 5. Nf3 {[%emt 0:00:33]} Nbd7 {[%emt 0:00:07]} 6. Qc2 {[%emt 0:00:35]} Bd6 {[%emt 0:00:11]} 7. Be2 {[%emt 0:01:35]} O-O {[%emt 0:00:37]} 8. b3 {[%emt 0:01:22]} b6 {[%emt 0:00:20]} 9. O-O {[%emt 0:00:16]} Bb7 {[%emt 0:00:08]} 10. Bb2 {[%emt 0:00:22]} Qe7 {[%emt 0:00:10]} 11. Rad1 {[%emt 0:01:23]} Rad8 {[%emt 0:00:23]} 12. Rfe1 {[%emt 0:02:39]} Rfe8 {[%emt 0:00:11]} 13. h3 {[%emt 0:05:49]} c5 {[%emt 0:00:08]} 14. cxd5 {[%emt 0:03:52]} exd5 {[%emt 0:00:23]} 15. Bb5 {[%emt 0:07:11]} a6 {[%emt 0:07:56]} 16. Bxd7 {[%emt 0:02:00]} Nxd7 {[%emt 0:02:09]} 17. dxc5 {[%emt 0:02:29]} Nxc5 {[%emt 0:00:17]} 18. Ne2 {[%emt 0:09:04]} Qe4 {[%emt 0:14:50]} 19. Qc3 {[%emt 0:09:00]} f6 {[%emt 0:08:04]} 20. Ned4 {[%emt 0:04:28]} Bc8 {[%emt 0:15:08]} 21. Nc6 {[%emt 0:12:43]} Rd7 {[%emt 0:00:22]} 22. Qd2 {[%emt 0:07:40]} a5 {[%emt 0:15:05]} 23. Ncd4 {[%emt 0:17:29]} Ba6 {[%emt 0:02:26]} 24. Rb1 {[%emt 0:00:35]} Nd3 {[%emt 0:03:31]} 25. Red1 {[%emt 0:00:10]} h6 {[%emt 0:18:53]} 26. a3 {[%emt 0:00:46]} f5 {[%emt 0:03:28]} 27. Ne1 {[%emt 0:02:22]} Nxb2 {[%emt 0:00:24]} 28. Qxb2 {[%emt 0:00:06]} f4 {[%emt 0:00:24]} 29. exf4 {[%emt 0:00:33]} Qxf4 {[%emt 0:00:23]} 30. Nef3 {[%emt 0:00:32]} Rde7 {[%emt 0:00:58]} 31. b4 {[%emt 0:01:55]} axb4 {[%emt 0:00:40]} 32. axb4 {[%emt 0:00:06]} Bc4 {[%emt 0:00:43]} 33. Qc2 {[%emt 0:01:31]} Re4 {[%emt 0:01:19]} 34. Qd2 {[%emt 0:01:47]} Qf6 {[%emt 0:02:22]} 35. Qc2 {[%emt 0:01:01]} Qf4 {[%emt 0:01:57]} 36. Qd2 {[%emt 0:00:29]} Qf6 {[%emt 0:00:23]} 37. Qc3 {[%emt 0:00:38]} Kh8 {[%emt 0:01:07]} 38. Nb5 {[%emt 0:00:43]} Be5 {[%emt 0:01:44]} 39. Nxe5 {[%emt 0:00:30]} Bxb5 {[%emt 0:00:40]} 40. f4 {[%emt 0:00:24]} Rxf4 {[%emt 0:00:55]} 41. Rxd5 {[%emt 0:07:55]} Be2 {[%emt 0:17:35]} 42. Qe3 {[%emt 0:10:13]} Bh5 {[%emt 0:00:51]} 43. Re1 {[%emt 0:01:23]} Kg8 {[%emt 0:06:52]} 44. Kh2 {[%emt 0:04:43]} Rxb4 {[%emt 0:02:01]} 45. Nd7 {[%emt 0:02:27]} Qf7 {[%emt 0:01:36]} 46. Qd2 {[%emt 0:05:03]} Rxe1 {[%emt 0:01:14]} 47. Nf6+ {[%emt 0:01:49]} Qxf6 {[%emt 0:01:41]} 48. Qxb4 {[%emt 0:00:20]} Bf7 {[%emt 0:01:13]} 0-1

[Event "51st Rilton Cup 2023-24"]
[Site "Stockholm"]
[Date "2023.12.29"]
[Round "3.4"]
[White "Parkhov, Yair"]
[Black "Djurovic, Goran"]
[Result "1-0"]
[ECO "E45"]
[WhiteElo "2495"]
[BlackElo "2372"]
[Annotator "ChessBase"]
[PlyCount "61"]
[EventDate "2023.12.27"]
[EventType "swiss"]
[EventCountry "SWE"]
[SourceTitle "playchess.com"]
[Source "ChessBase"]
[SourceQuality "1"]
[TimeControl "40/5400+30:1800+30"]

1. d4 {[%emt 0:03:42]} Nf6 {[%emt 0:03:42]} 2. c4 {[%emt 0:00:22]} e6 {[%emt 0:01:15]} 3. Nc3 {[%emt 0:00:05]} Bb4 {[%emt 0:00:42]} 4. e3 {[%emt 0:00:04]} b6 {[%emt 0:03:13]} 5. Nge2 {[%emt 0:00:10]} Ba6 {[%emt 0:00:22]} 6. Ng3 {[%emt 0:00:08]} O-O {[%emt 0:14:38]} 7. e4 {[%emt 0:01:01]} d5 {[%emt 0:01:47]} 8. cxd5 {[%emt 0:15:12]} Bxf1 {[%emt 0:02:25]} 9. Kxf1 {[%emt 0:02:14]} exd5 {[%emt 0:13:04]} 10. e5 {[%emt 0:00:11]} Ne8 {[%emt 0:00:48]} 11. Nce2 {[%emt 0:02:18]} Qd7 {[%emt 0:07:58]} 12. Nf4 {[%emt 0:05:57]} c6 {[%emt 0:02:35]} 13. Qd3 {[%emt 0:08:32]} g6 {[%emt 0:05:08]} 14. h4 {[%emt 0:03:07]} f5 {[%emt 0:03:30]} 15. Nh3 {[%emt 0:08:12]} Ng7 {[%emt 0:03:12]} 16. Bh6 {[%emt 0:03:25]} Re8 {[%emt 0:01:09]} 17. h5 {[%emt 0:02:53]} Bf8 {[%emt 0:02:26]} 18. Ng5 {[%emt 0:04:46]} Ne6 {[%emt 0:03:35]} 19. hxg6 {[%emt 0:02:54]} hxg6 {[%emt 0:00:41]} 20. Ne2 {[%emt 0:06:15]} Bxh6 {[%emt 0:04:21]} 21. Nxe6 {[%emt 0:00:49]} Qh7 {[%emt 0:00:38]} 22. N2f4 {[%emt 0:01:02]} Re7 {[%emt 0:01:43]} 23. g4 {[%emt 0:02:18]} fxg4 {[%emt 0:03:10]} 24. Ng5 {[%emt 0:00:20]} Qg7 {[%emt 0:01:04]} 25. Nfe6 {[%emt 0:00:29]} Bxg5 {[%emt 0:00:43]} 26. Nxg7 {[%emt 0:00:12]} Kxg7 {[%emt 0:00:48]} 27. Rg1 {[%emt 0:00:22]} Bf4 {[%emt 0:02:13]} 28. Rxg4 {[%emt 0:00:17]} g5 {[%emt 0:00:05]} 29. Qf5 {[%emt 0:00:34]} Rf7 {[%emt 0:00:31]} 30. Rxg5+ {[%emt 0:00:13]} Bxg5 {[%emt 0:00:13]} 31. Qxg5+ {[%emt 0:00:05]} 1-0

[Event "51st Rilton Cup 2023-24"]
[Site "Stockholm"]
[Date "2023.12.29"]
[Round "3.5"]
[White "Rakesh Kumar Jena"]
[Black "Costa, Leonardo"]
[Result "1/2-1/2"]
[ECO "D02"]
[WhiteElo "2335"]
[BlackElo "2472"]
[Annotator "ChessBase"]
[PlyCount "82"]
[EventDate "2023.12.27"]
[EventType "swiss"]
[EventCountry "SWE"]
[SourceTitle "playchess.com"]
[Source "ChessBase"]
[SourceQuality "1"]
[TimeControl "40/5400+30:1800+30"]

1. d4 {[%emt 0:00:02]} Nf6 {[%emt 0:00:05]} 2. Bf4 {[%emt 0:00:05]} d5 {[%emt 0:00:04]} 3. e3 {[%emt 0:00:13]} Bf5 {[%emt 0:00:06]} 4. Nd2 {[%emt 0:00:10]} e6 {[%emt 0:01:58]} 5. c3 {[%emt 0:00:51]} c6 {[%emt 0:08:33]} 6. Ngf3 {[%emt 0:00:43]} Nbd7 {[%emt 0:01:15]} 7. Qb3 {[%emt 0:03:46]} Qb6 {[%emt 0:03:19]} 8. h3 {[%emt 0:03:23]} h6 {[%emt 0:00:24]} 9. Be2 {[%emt 0:01:32]} Be7 {[%emt 0:02:03]} 10. Ne5 {[%emt 0:02:26]} Ne4 {[%emt 0:14:45]} 11. Nxd7 {[%emt 0:02:30]} Kxd7 {[%emt 0:03:44]} 12. g4 {[%emt 0:02:43]} Bh7 {[%emt 0:00:35]} 13. Nxe4 {[%emt 0:06:45]} Bxe4 {[%emt 0:00:05]} 14. f3 {[%emt 0:00:06]} Bh7 {[%emt 0:05:22]} 15. Kd2 {[%emt 0:05:28]} h5 {[%emt 0:05:35]} 16. gxh5 {[%emt 0:08:01]} Bf5 {[%emt 0:00:20]} 17. Rag1 {[%emt 0:01:21]} Qxb3 {[%emt 0:02:12]} 18. axb3 {[%emt 0:00:35]} Rag8 {[%emt 0:01:10]} 19. Be5 {[%emt 0:21:40]} f6 {[%emt 0:11:41]} 20. Bg3 {[%emt 0:01:04]} Rxh5 {[%emt 0:00:02]} 21. e4 {[%emt 0:01:37]} Bxh3 {[%emt 0:03:41]} 22. exd5 {[%emt 0:02:23]} cxd5 {[%emt 0:00:08]} 23. b4 {[%emt 0:03:17]} a6 {[%emt 0:04:34]} 24. b5 {[%emt 0:01:59]} a5 {[%emt 0:00:24]} 25. b6 {[%emt 0:02:46]} Bd8 {[%emt 0:04:40]} 26. Bb5+ {[%emt 0:02:58]} Kc8 {[%emt 0:00:26]} 27. Bd6 {[%emt 0:00:27]} Bxb6 {[%emt 0:05:10]} 28. Rg3 {[%emt 0:00:13]} Bg4 {[%emt 0:00:03]} 29. Rhg1 {[%emt 0:00:23]} Rh2+ {[%emt 0:00:40]} 30. Kc1 {[%emt 0:03:20]} Bf5 {[%emt 0:00:04]} 31. Rxg7 {[%emt 0:00:06]} Rc2+ {[%emt 0:00:02]} 32. Kd1 {[%emt 0:00:05]} Rd8 {[%emt 0:00:43]} 33. Ba3 {[%emt 0:02:42]} e5 {[%emt 0:06:56]} 34. Rf7 {[%emt 0:11:50]} exd4 {[%emt 0:00:31]} 35. Rxf6 {[%emt 0:00:05]} dxc3 {[%emt 0:00:11]} 36. Rxb6 {[%emt 0:00:07]} Kc7 {[%emt 0:02:14]} 37. Bc5 {[%emt 0:05:00]} cxb2 {[%emt 0:03:36]} 38. Rg7+ {[%emt 0:00:06]} Kc8 {[%emt 0:00:01]} 39. Rc6+ {[%emt 0:00:14]} Kb8 {[%emt 0:04:40]} 40. Rxb7+ {[%emt 0:00:06]} Kxb7 {[%emt 0:00:03]} 41. Rb6+ {[%emt 0:30:04]} Kc7 {[%emt 0:30:25]} 1/2-1/2